bitfinex/quotes_ETHUSD_20241030
["timestamp","ask_amount","ask_price","bid_price","bid_amount"]
[1730309933132,1.20002015,2671.5,2671.0,0.0460003]
[1730309933313,1.20002015,2671.5,2671.1,3.74377]
[1730309933837,1.20002015,2671.5,2671.2,0.04582828]
[1730309934041,3.74337,2671.4,2671.2,0.04582828]
[1730309934207,4.94335015,2671.5,2671.2,0.04582828]
[1730309934208,0.73419152,2671.6,2671.2,0.04582828]
[1730309934537,0.73419152,2671.6,2671.1,3.74367]
[1730309934741,3.7436,2671.3,2670.7,0.7903]
[1730309934935,0.37436,2671.2,2670.8,3.74406]
[1730309935137,3.7433,2671.5,2670.8,0.07488001]
[1730309935438,7.48662,2671.5,2670.9,3.74397]
[1730309935635,0.44774915,2671.4,2670.9,3.74397]
[1730309935800,0.44774915,2671.4,2670.7,0.7903]
[1730309936010,3.74379,2671.1,2670.7,0.7903]
[1730309936543,3.74379,2671.1,2670.7,4.53461]
[1730309936913,3.74423,2670.8,2670.3,4.57247]
[1730309937119,4.118653,2670.8,2670.4,3.0]
[1730309937442,0.374423,2670.8,2670.5,0.04485795]
[1730309937747,0.374423,2670.8,2670.3,4.57256]
[1730309937953,0.374423,2670.8,2670.6,0.04478118]
[1730309938244,0.374423,2670.8,2670.4,3.74463]
[1730309938712,0.374423,2670.8,2670.5,0.04485795]
[1730309939508,3.74379,2671.1,2670.6,3.74445]
[1730309939709,3.74379,2671.1,2670.7,0.04470441]
[1730309939947,3.74379,2671.1,2670.7,3.78900441]
[1730309940102,3.74364,2671.2,2670.7,3.78900441]
[1730309940306,4.572402,2671.1,2670.7,0.04470441]
[1730309940533,3.74377,2671.1,2670.7,0.04470441]
[1730309941759,3.74377,2671.1,2670.7,3.78900441]
[1730309941932,3.74377,2671.1,2670.7,0.04470441]
[1730309942842,3.74372,2671.2,2670.7,3.78900441]
[1730309943052,4.197988,2671.2,2670.7,3.78900441]
[1730309943545,3.74377,2671.1,2670.7,0.04470441]
[1730309944141,3.74377,2671.1,2670.7,3.78903441]
[1730309944319,3.74377,2671.1,2670.7,0.04470441]
[1730309944732,3.74365,2671.2,2670.7,3.78899441]
[1730309946043,4.47727152,2671.6,2670.8,0.90238175]
[1730309946044,1.55289152,2671.6,2670.8,0.90238175]
[1730309946218,0.8187,2671.6,2670.8,0.90238175]
[1730309946425,3.74322,2671.5,2671.0,3.74382]
[1730309946754,3.74279,2671.8,2671.3,3.74343]
[1730309946909,3.74279,2671.8,2671.4,0.7604]
[1730309947112,3.74296,2671.7,2671.5,0.04409046]
[1730309947630,4.52033,2671.9,2671.5,0.04409046]
[1730309948127,3.74284,2671.8,2671.5,0.04409046]
[1730309948336,3.74293,2671.7,2671.5,0.04409046]
[1730309948639,7.48599,2671.7,2671.5,0.04409046]
[1730309948839,3.74307,2671.6,2671.5,0.04409046]
[1730309950418,3.74293,2671.7,2671.5,0.04409046]
[1730309950618,3.74293,2671.7,2671.4,0.7604]
[1730309950819,3.74293,2671.7,2671.6,0.04401374]
[1730309951016,3.74293,2671.7,2671.4,0.7604]
[1730309951239,3.74293,2671.7,2671.6,0.04401374]
[1730309951461,3.74293,2671.7,2671.4,0.7604]
[1730309951613,3.74293,2671.7,2671.6,0.04401374]
[1730309951816,3.74293,2671.7,2671.4,0.7604]
[1730309952053,3.7427,2671.9,2671.6,0.04395991]
[1730309952054,3.7428,2671.8,2671.6,0.04395991]
[1730309952273,3.74307,2671.6,2671.5,0.04403662]
[1730309952413,4.49144,2671.8,2671.4,0.7604]
[1730309952617,3.74294,2671.7,2671.4,0.7604]
[1730309953629,3.74311,2671.6,2671.4,0.7604]
[1730309954422,3.74294,2671.7,2671.4,0.7604]
[1730309954832,7.486,2671.7,2671.4,0.7604]
[1730309955164,3.74307,2671.6,2671.4,0.7604]
[1730309956575,4.566435,2671.7,2671.1,0.776]
[1730309956867,3.74408,2670.9,2670.5,4.52055]
[1730309957066,3.744,2671.0,2670.5,4.5206]
[1730309957227,3.744,2671.0,2670.6,3.74444]
[1730309958172,0.7824,2671.1,2670.1,0.01]
[1730309958405,3.74419,2670.9,2670.4,3.74466]
[1730309958732,3.74421,2670.8,2670.5,0.04325182]
[1730309958941,3.74437,2670.7,2670.5,0.04325182]
[1730309959152,4.493238,2670.7,2670.1,0.01]
[1730309959357,3.7447,2670.5,2670.1,3.7551]
[1730309959558,3.74461,2670.5,2670.1,0.01]
[1730309959758,3.74503,2670.2,2670.1,0.01]
[1730309961276,3.74503,2670.2,2669.1,3.74655]
[1730309961277,0.01,2669.4,2669.0,0.58615452]
[1730309961580,0.01,2669.6,2668.3,0.1297941]
[1730309961783,3.74676,2669.0,2668.4,0.7506]
[1730309962072,0.7825,2669.5,2668.4,0.7506]
[1730309962293,0.7825,2669.5,2668.3,0.1297941]
[1730309962294,3.74699,2668.9,2668.3,0.1297941]
[1730309962457,3.74659,2669.1,2668.3,0.1297941]
[1730309962659,3.74702,2668.8,2668.3,0.1297941]
[1730309963066,0.7806,2668.9,2668.3,0.1297941]
[1730309963067,3.7468,2669.0,2668.3,0.1297941]
[1730309963257,3.74623,2669.4,2668.4,0.7823]
[1730309963461,3.74623,2669.4,2668.8,3.74698]
[1730309963884,3.74623,2669.4,2668.8,3.74687]
[1730309964091,3.74623,2669.4,2668.7,7.49412]
[1730309964255,4.61743208,2669.4,2668.7,3.74706]
[1730309964459,4.52656,2669.6,2668.9,4.52902]
[1730309964902,0.7806,2669.6,2668.9,4.52902]
[1730309965070,0.7806,2669.6,2668.9,4.52907]
[1730309965486,3.74567,2669.8,2669.0,3.82154693]
[1730309965785,3.74567,2669.8,2669.0,3.74662]
[1730309965992,0.7551,2669.9,2669.1,3.7465]
[1730309966189,0.7551,2669.9,2669.2,3.74636]
[1730309966385,1.207801,2670.4,2669.4,0.8144]
[1730309966702,3.74506,2670.2,2669.4,4.56047]
[1730309966996,8.697471,2670.4,2669.4,4.56046]
[1730309967206,1.207801,2670.4,2669.4,3.8144]
[1730309967370,1.207801,2670.4,2669.9,3.74543]
[1730309967371,0.452701,2670.4,2669.9,3.74543]
[1730309967895,0.452701,2670.4,2670.0,0.04616003]
[1730309968463,3.7449,2670.3,2670.0,0.04616003]
[1730309968782,7.48937,2670.5,2670.1,0.04605529]
[1730309968958,3.74487,2670.4,2670.1,0.04605529]
[1730309969156,0.748954,2670.3,2669.7,3.7457]
[1730309969392,0.748954,2670.3,2669.8,0.0427478]
[1730309969602,0.748954,2670.3,2669.7,7.49136]
[1730309969798,0.748954,2670.3,2669.9,0.04652922]
[1730309970004,0.748954,2670.3,2669.7,7.49132]
[1730309970005,0.748954,2670.3,2669.8,0.04663397]
[1730309970324,0.748954,2670.3,2669.7,3.74566]
[1730309970325,3.74449,2670.6,2670.0,0.04642448]
[1730309970469,3.74449,2670.6,2669.9,3.79188922]
[1730309970665,7.48907,2670.6,2670.1,0.04631974]
[1730309970912,0.454639,2670.5,2670.0,0.04642448]
[1730309971204,0.454639,2670.5,2670.1,0.04631974]
[1730309971409,0.454639,2670.5,2669.5,7.4918]
[1730309971708,3.74498,2670.3,2670.2,0.04621502]
[1730309971919,3.74498,2670.3,2669.6,3.74586]
[1730309972208,0.8019,2670.7,2669.4,8.77013497]
[1730309972371,0.8019,2670.7,2669.7,0.04673872]
[1730309972706,3.01,2671.3,2669.7,0.04673872]
[1730309972707,3.74392,2671.0,2670.3,3.74486]
[1730309972867,3.74417,2670.9,2670.2,4.55334]
[1730309973064,0.452127,2670.8,2670.4,0.04603498]
[1730309973309,3.74434,2670.7,2670.3,0.04613969]
[1730309973603,3.74447,2670.6,2670.4,0.04603498]
[1730309973807,4.1641167,2670.6,2670.4,0.04603498]
[1730309973993,3.74464,2670.5,2670.0,3.74529]
[1730309974167,0.41642867,2670.4,2670.0,3.74519]
[1730309974373,3.74462,2670.5,2670.0,3.74519]
[1730309974573,0.4196467,2670.6,2670.1,3.74503]
[1730309975084,0.4196467,2670.6,2670.2,7.48994]
[1730309975325,0.7771,2671.0,2670.6,3.74438]
[1730309975504,4.1429317,2672.1,2670.6,3.74438]
[1730309975505,0.7921,2671.5,2670.7,3.81921963]
[1730309975820,0.7921,2671.5,2671.3,3.74349]
[1730309975992,3.74274,2671.9,2671.3,3.74349]
[1730309976199,3.74244,2672.1,2671.5,3.74319]
[1730309976366,4.116764,2672.0,2671.5,3.74319]
[1730309977084,3.74266,2671.9,2671.3,7.4868]
[1730309977300,3.74266,2671.9,2671.3,3.7434]
[1730309977497,3.74266,2671.9,2671.2,0.7768]
[1730309977498,3.74266,2671.9,2671.4,3.74333]
[1730309977897,3.74122242,2671.9,2671.4,3.74333]
[1730309978213,0.41154664,2671.8,2671.4,3.74333]
[1730309978980,4.15438664,2671.8,2671.2,8.26392]
[1730309979177,0.41154664,2671.8,2671.3,3.74341]
[1730309979615,3.74321,2671.5,2670.9,0.7785]
[1730309979829,3.74321,2671.5,2671.0,3.74386]
[1730309980331,3.74399,2671.0,2670.4,3.74474]
[1730309980514,3.7442,2670.8,2670.3,4.52338]
[1730309981528,3.7442,2670.8,2670.4,3.74472]
[1730309982123,3.74443,2670.7,2670.2,3.74494]
[1730309982307,3.7442,2670.8,2670.2,3.74494]
[1730309982492,4.1560599,2670.8,2670.3,0.05058742]
[1730309982827,3.74435,2670.7,2670.2,3.74494]
[1730309983135,4.1560599,2670.8,2670.2,3.74494]
[1730309983136,4.1560599,2670.8,2670.4,0.05047224]
[1730309983335,7.9003599,2670.8,2670.3,0.05058742]
[1730309983491,3.74447,2670.6,2670.5,0.0559523]
[1730309984027,3.74475,2670.4,2670.0,3.7452]
[1730309984610,3.74468,2670.5,2670.0,3.7452]
[1730309984816,3.74476,2670.4,2670.0,3.7452]
[1730309985430,3.74476,2670.4,2669.8,4.5587]
[1730309985431,3.7449,2670.3,2669.8,4.5587]
[1730309985628,3.7449,2670.3,2669.8,0.8132]
[1730309985831,3.7449,2670.3,2669.8,4.55873]
[1730309985990,7.48993,2670.3,2669.8,4.55873]
[1730309986329,3.7449,2670.3,2669.8,4.55873]
[1730309986520,3.7449,2670.3,2669.8,8.30426]
[1730309986841,3.74463,2670.5,2669.9,3.74538]
[1730309986993,3.74484,2670.4,2669.9,3.74538]
[1730309988534,3.74484,2670.4,2669.8,4.55871]
[1730309989229,3.74463,2670.5,2669.8,4.55871]
[1730309989427,3.74463,2670.5,2670.0,3.74531]
[1730309989731,4.197863,2670.5,2670.0,3.74531]
[1730309989897,4.197863,2670.5,2670.1,3.74516]
[1730309991048,4.53213,2670.7,2670.2,7.48994]
[1730309991049,4.53212,2670.7,2670.2,7.48994]
[1730309991198,4.53212,2670.7,2669.7,7.95534497]
[1730309991199,4.51998,2671.0,2670.5,3.7446]
[1730309991536,3.74406,2670.9,2670.5,3.7446]
[1730309991832,8.716018,2671.0,2670.5,3.7446]
[1730309992253,4.971978,2671.0,2670.4,0.7928]
[1730309992628,7.48857,2670.8,2670.4,0.7928]
[1730309992832,3.74428,2670.8,2670.4,0.7928]
[1730309993327,3.7443,2670.8,2670.1,3.74507]
[1730309993540,3.74428,2670.8,2670.1,4.53787]
[1730309993853,3.74428,2670.8,2670.3,3.74483]
[1730309993854,0.42414978,2670.7,2670.3,3.74483]
[1730309994016,8.26403,2671.0,2670.5,3.74452]
[1730309994435,3.74406,2670.9,2670.5,3.74452]
[1730309995155,3.74375,2671.2,2670.6,0.8054]
[1730309995353,3.74375,2671.2,2670.7,3.74433]
[1730309995354,3.74379,2671.1,2670.7,3.74433]
[1730309995511,0.748754,2671.0,2670.7,3.79438752]
[1730309995720,3.74342,2671.4,2670.9,3.74405]
[1730309996009,4.53798,2671.8,2671.3,3.74343]
[1730309996134,1.248898,2671.8,2671.2,0.7803]
[1730309996459,3.74322,2671.5,2671.3,0.05494681]
[1730309996754,3.74322,2671.5,2670.8,0.7803]
[1730309996959,3.74372,2671.2,2670.9,0.05545844]
[1730309997257,0.748721,2671.2,2670.9,0.05545844]
[1730309997458,3.74349,2671.3,2670.9,0.05545844]
[1730309997953,3.74365,2671.2,2670.9,0.05545844]
[1730309998465,3.74391,2671.0,2670.9,0.05545844]
[1730309998648,0.8232,2671.2,2670.9,0.05545844]
[1730309998851,3.74379,2671.1,2670.6,7.48877]
[1730309999164,3.74379,2671.1,2670.6,3.74437]
[1730309999468,3.74405,2670.9,2670.7,0.05571431]
[1730309999779,3.74395,2671.0,2670.5,0.8172]
[1730309999970,3.74393,2671.0,2670.6,0.05584226]
[1730310000268,4.6206998,2671.0,2670.6,0.05584226]
[1730310000867,3.74408,2670.9,2670.6,0.05584226]
[1730310001547,4.6206998,2671.0,2670.6,0.05584226]
[1730310001985,0.8767698,2671.0,2670.6,0.05584226]
[1730310002137,0.8767698,2671.0,2669.0,0.58620763]
[1730310002138,3.74658,2669.1,2669.0,0.58620763]
[1730310002338,4.121238,2669.1,2669.0,0.58620763]
[1730310002658,3.74702,2668.8,2668.5,0.8172]
[1730310003051,3.7469,2668.9,2668.5,0.8172]
[1730310003283,3.74702,2668.8,2668.5,0.8172]
[1730310003614,1.197858,2669.1,2668.5,0.8172]
[1730310003756,3.74736,2668.6,2668.3,0.1297941]
[1730310004263,3.74752,2668.5,2668.3,0.1297941]
[1730310004454,3.74756,2668.4,2668.3,0.1297941]
[1730310005202,4.54646,2668.4,2668.3,0.1297941]
[1730310005500,5.376858,2668.4,2668.3,0.1297941]
[1730310005997,0.01,2668.2,2668.1,0.21945712]
[1730310006299,0.01,2668.2,2666.3,0.58671391]
[1730310006300,0.36,2666.8,2666.3,0.58671391]
[1730310006457,0.36,2666.8,2665.6,0.1306011]
[1730310006458,3.75092,2666.1,2665.6,0.1306011]
[1730310006657,0.36,2666.8,2665.7,0.7718]
[1730310006888,3.7502,2666.6,2665.8,3.75107]
[1730310007202,3.01,2667.4,2665.7,4.52302]
[1730310007203,4.21962497,2667.9,2665.9,0.43006816]
[1730310007358,4.56962497,2667.6,2666.3,3.75051]
[1730310007563,4.56962497,2667.6,2665.9,0.8355]
[1730310007564,3.7492,2667.3,2666.6,3.75009]
[1730310007791,3.7492,2667.3,2666.7,0.8255]
[1730310008023,0.8312,2668.5,2666.9,4.21962497]
[1730310008296,3.74772,2668.3,2667.4,3.74885]
[1730310008465,0.8312,2668.5,2667.6,3.74867]
[1730310008670,4.205412,2668.4,2667.6,3.74867]
[1730310009183,4.205412,2668.4,2667.4,3.74887]
[1730310009384,4.205412,2668.4,2667.0,0.77]
[1730310009385,3.74845,2667.8,2667.0,0.77]
[1730310010286,3.74845,2667.8,2667.0,4.59448112]
[1730310010486,3.74845,2667.8,2667.0,0.77]
[1730310010688,4.498112,2667.8,2667.0,4.5195]
[1730310011521,3.74788,2668.2,2667.1,0.07498109]
[1730310011726,3.74788,2668.2,2667.4,3.74886]
[1730310011925,4.205492,2668.4,2667.1,0.0749751]
[1730310011926,0.374788,2668.1,2667.1,0.0749751]
[1730310012094,4.205422,2668.4,2667.6,3.74855]
[1730310012293,0.457852,2668.4,2667.7,3.7484]
[1730310012633,7.49439,2668.7,2667.9,3.74826]
[1730310012790,3.74714,2668.7,2667.9,3.74826]
[1730310012992,3.74745,2668.5,2667.7,3.74846]
[1730310013188,3.74745,2668.5,2667.7,7.49691]
[1730310013417,4.122114,2668.6,2667.7,3.74845]
[1730310013621,4.122114,2668.6,2667.9,3.74826]
[1730310014235,4.122114,2668.6,2667.7,7.49689]
[1730310014525,0.374714,2668.6,2667.9,3.74816]
[1730310014727,0.8099,2668.9,2668.0,0.8544582]
[1730310014947,0.8099,2668.9,2668.3,3.74769]
[1730310015328,3.74677,2669.0,2668.4,3.74753]
[1730310015540,3.74677,2669.0,2668.3,3.74761]
[1730310015741,4.496094,2669.0,2668.3,3.74761]
[1730310015942,3.74677,2669.0,2668.3,3.74761]
[1730310016250,3.74649,2669.2,2668.5,3.74733]
[1730310016548,7.948049,2669.2,2668.5,3.74731]
[1730310016711,7.948049,2669.2,2668.6,3.74727]
[1730310016712,4.201479,2669.2,2668.6,3.74727]
[1730310016908,3.74658,2669.1,2668.5,3.74731]
[1730310018049,4.201479,2669.2,2668.5,3.74731]
[1730310018230,7.948049,2669.2,2668.0,4.52758]
[1730310018579,0.5004879,2669.1,2668.5,3.7473]
[1730310018839,4.2471579,2669.1,2668.5,3.7473]
[1730310019042,3.74649,2669.2,2668.5,7.49462]
[1730310019205,4.5497,2669.3,2668.7,3.74713]
[1730310019406,4.5497,2669.3,2668.1,3.74791]
[1730310019407,3.74645,2669.2,2668.6,3.74726]
[1730310019640,3.74645,2669.2,2668.6,3.74719]
[1730310019952,3.7462,2669.4,2668.7,3.74712]
[1730310020118,3.7462,2669.4,2668.8,0.756]
[1730310020443,3.74593,2669.6,2668.9,3.74678]
[1730310020609,3.74604,2669.5,2668.9,3.74678]
[1730310020811,4.44039022,2669.5,2668.9,3.74677]
[1730310021036,3.74593,2669.6,2668.9,3.82169973]
[1730310021215,3.74593,2669.6,2669.0,3.7467]
[1730310021736,3.74593,2669.6,2669.1,3.74655]
[1730310021938,3.74603,2669.5,2668.9,3.74677]
[1730310022132,7.866493,2669.6,2668.9,3.74677]
[1730310022336,4.120523,2669.6,2668.9,3.74677]
[1730310022540,3.74593,2669.6,2669.1,3.74653]
[1730310023628,3.74561,2669.8,2668.8,0.756]
[1730310023823,4.56018,2670.0,2669.3,3.74619]
[1730310024030,5.016198,2670.0,2669.4,3.74612]
[1730310024233,3.74558,2669.9,2669.3,3.74619]
[1730310024522,4.201398,2670.0,2669.5,0.8317]
[1730310024728,3.74553,2669.9,2669.5,0.8317]
[1730310024924,3.74579,2669.7,2669.2,0.8317]
[1730310025864,0.4201398,2669.9,2669.3,3.74621]
[1730310026027,3.74537,2670.0,2669.3,3.74621]
[1730310026221,3.74553,2669.9,2669.3,3.74621]
[1730310026425,3.74553,2669.9,2669.4,3.74615]
[1730310026632,3.74553,2669.9,2669.3,3.74621]
[1730310026633,3.74569,2669.8,2669.3,3.74621]
[1730310026876,4.120243,2669.8,2669.3,3.74621]
[1730310027736,0.586347,2670.8,2669.3,3.7463]
[1730310027977,3.74499,2670.3,2669.7,3.74565]
[1730310028360,3.74489,2670.3,2669.7,3.74565]
[1730310028677,0.748964,2670.2,2669.7,3.74565]
[1730310028872,4.494034,2670.2,2669.5,7.49183]
[1730310029028,3.7452,2670.1,2669.6,3.74584]
[1730310029460,3.74507,2670.2,2669.2,7.5881]
[1730310029665,3.74507,2670.2,2669.7,3.74562]
[1730310029875,0.748988,2670.2,2669.9,3.74535]
[1730310030083,4.54748,2670.5,2670.0,3.74529]
[1730310030235,3.74476,2670.4,2669.9,3.74535]
[1730310030440,3.74476,2670.4,2669.9,7.4907]
[1730310030977,3.7449,2670.3,2669.7,3.74563]
[1730310031276,0.748966,2670.2,2669.9,3.74543]
[1730310031445,3.74475,2670.4,2669.9,3.74538]
[1730310031647,7.48959,2670.4,2669.9,3.74538]
[1730310031855,3.74594,2669.6,2669.2,0.8317]
[1730310032277,0.7544,2669.8,2668.8,0.8254]
[1730310032582,3.74648,2669.2,2668.6,3.74717]
[1730310032872,0.374648,2669.1,2668.5,4.57268]
[1730310033082,7.49269,2669.3,2668.7,3.74705]
[1730310033259,7.49269,2669.3,2668.5,0.8254]
[1730310033260,0.749269,2669.3,2668.5,0.8254]
[1730310033450,3.74681,2669.0,2668.5,4.57281]
[1730310034439,3.74686,2668.9,2668.5,0.8254]
[1730310034642,3.74689,2668.9,2668.5,0.8254]
[1730310034839,3.74681,2669.0,2668.5,4.57281]
[1730310035067,3.74681,2669.0,2668.5,0.8254]
[1730310035068,7.49364,2669.0,2668.5,0.8254]
[1730310035283,3.74681,2669.0,2668.5,4.57281]
[1730310035652,3.74625,2669.4,2668.5,0.90034084]
[1730310035999,7.49252,2669.4,2668.9,3.74684]
[1730310036152,3.74625,2669.4,2668.9,3.74684]
[1730310036351,4.572973,2669.4,2668.9,3.74684]
[1730310036962,3.74625,2669.4,2668.9,3.74684]
[1730310037170,3.74666,2669.1,2668.6,0.07493063]
[1730310037398,3.74654,2669.2,2668.6,3.74717]
[1730310037544,3.74644,2669.2,2668.6,3.74717]
[1730310037745,3.74644,2669.2,2668.7,3.74711]
[1730310037944,0.7861,2668.3,2667.4,4.13851886]
[1730310038149,3.74882,2667.5,2667.4,0.38963886]
[1730310038354,4.498556,2667.5,2667.4,0.38963886]
[1730310038551,3.74896,2667.4,2666.2,1.21724051]
[1730310038779,3.74992,2666.8,2666.3,4.0]
[1730310038977,3.75026,2666.5,2666.3,4.05477665]
[1730310039180,3.75,2666.7,2666.3,4.05477665]
[1730310039357,3.75023,2666.5,2666.3,0.05477665]
[1730310039758,0.375023,2666.4,2665.7,3.75127]
[1730310039975,3.75062,2666.3,2665.7,3.75127]
[1730310040179,0.375023,2666.4,2665.6,0.1306011]
[1730310040357,3.75059,2666.3,2665.6,0.1306011]
[1730310040559,0.7887,2666.5,2665.6,0.1306011]
[1730310040769,4.53901,2666.5,2665.7,3.75127]
[1730310040985,4.51865,2665.7,2665.6,0.1306011]
[1730310041290,4.51865,2665.7,2663.4,4.50918]
[1730310041291,0.36,2664.8,2663.4,4.50918]
[1730310041582,0.07505972,2664.8,2663.7,3.76416]
[1730310041795,0.07505972,2664.8,2663.2,3.75479]
[1730310041796,0.07505972,2665.5,2664.3,3.75333]
[1730310042085,0.07505972,2665.5,2664.4,3.82814973]
[1730310042397,0.07505972,2665.5,2664.4,3.75311]
[1730310042543,0.07505972,2665.5,2664.6,3.7529]
[1730310042887,0.07505972,2665.5,2664.7,0.04743621]
[1730310043059,0.07505972,2665.5,2664.7,0.80213621]
[1730310043384,3.7519,2665.4,2664.7,0.04743621]
[1730310043555,0.82541372,2665.3,2664.7,0.04743621]
[1730310043740,0.07505972,2665.3,2664.5,3.75293]
[1730310043946,0.07505972,2665.5,2665.1,3.75219]
[1730310044189,0.07505972,2665.7,2665.1,3.75219]
[1730310044345,0.52591272,2665.7,2665.2,0.04763443]
[1730310044542,0.07505972,2665.7,2665.2,0.04763443]
[1730310044856,3.82643972,2665.7,2665.2,0.04763443]
[1730310045050,0.07505972,2665.7,2665.2,0.04763443]
[1730310045379,0.07505972,2665.8,2664.9,4.51097]
[1730310045550,0.52589972,2665.8,2665.3,0.0475436]
[1730310045749,0.52589972,2665.8,2664.9,3.75247]
[1730310046288,4.27722972,2665.8,2665.0,0.04777921]
[1730310046583,0.50342997,2665.7,2665.0,0.04777921]
[1730310046785,0.07505972,2665.6,2665.0,0.04777921]
[1730310047188,3.7518,2665.4,2665.0,0.04777921]
[1730310047372,0.07505972,2665.3,2665.0,0.04777921]
[1730310047574,0.45774569,2665.3,2664.5,3.75292]
[1730310047757,0.45774569,2665.3,2665.1,0.04640159]
[1730310048082,0.45774569,2665.3,2664.5,3.75292]
[1730310048083,0.45774569,2665.3,2665.2,0.04480971]
[1730310048314,0.07505972,2665.3,2665.2,0.04480971]
[1730310048450,0.8192,2665.3,2664.5,3.75292]
[1730310048786,0.07505972,2665.2,2664.1,3.75357]
[1730310048968,3.82716972,2665.2,2664.3,3.75332]
[1730310049679,0.07505972,2665.2,2664.1,0.52902702]
[1730310049846,0.07505972,2665.2,2664.7,3.75265]
[1730310050446,0.07505972,2665.2,2664.8,3.75259]
[1730310050885,0.07505972,2665.2,2664.0,4.54979]
[1730310051054,0.07505972,2665.2,2664.7,3.75265]
[1730310051255,0.07505972,2665.2,2664.8,3.75262]
[1730310051789,0.07505972,2665.2,2664.2,3.75347]
[1730310051948,0.53967869,2665.2,2664.6,3.75281]
[1730310052150,0.07505972,2665.2,2664.4,0.05630448]
[1730310052385,0.89425972,2665.7,2665.1,3.75217]
[1730310052590,4.64562972,2665.7,2665.1,3.75217]
[1730310052750,5.54522269,2665.7,2665.1,3.75217]
[1730310053692,5.54522269,2665.7,2664.6,3.7529]
[1730310053693,3.75206,2665.2,2664.6,3.7529]
[1730310053853,0.07505972,2665.1,2664.6,3.7529]
[1730310054275,0.07505972,2665.1,2664.4,3.75319]
[1730310054491,0.07505972,2665.1,2664.8,3.75255]
[1730310054691,0.07505972,2665.3,2664.9,3.75246]
[1730310055063,0.07505972,2665.3,2665.0,3.75224]
[1730310055256,0.07505972,2665.6,2665.0,3.75224]
[1730310055568,0.07505972,2665.6,2663.7,3.75408]
[1730310055569,3.75275,2664.8,2663.7,3.75417]
[1730310055776,3.7533,2664.4,2663.7,3.75408]
[1730310055958,3.82840972,2664.3,2663.7,3.75408]
[1730310056155,0.91277069,2664.3,2663.0,0.7748]
[1730310056393,3.75371,2664.1,2663.4,3.75459]
[1730310056605,3.82883972,2664.0,2663.2,3.75487]
[1730310056895,0.07505972,2664.0,2663.3,0.07508877]
[1730310057067,4.54863,2664.4,2663.6,3.75419]
[1730310057407,0.02505972,2664.3,2663.7,3.75415]
[1730310057697,0.02505972,2664.3,2663.9,3.7538]
[1730310058196,0.02505972,2664.3,2664.0,0.04186053]
[1730310058558,0.02505972,2664.3,2663.7,3.75408]
[1730310058761,0.7511,2664.8,2664.2,3.75338]
[1730310058956,0.7511,2664.8,2664.1,0.04178193]
[1730310058957,0.02505972,2664.7,2664.1,3.75348]
[1730310059277,3.75228,2665.1,2664.5,3.75296]
[1730310059478,0.02505972,2665.0,2664.6,3.75288]
[1730310059672,0.7511,2665.2,2664.8,3.75259]
[1730310059896,0.02505972,2665.2,2664.8,3.75254]
[1730310060080,0.02505972,2665.2,2664.9,3.79361415]
[1730310060290,0.02505972,2665.5,2664.9,3.79361415]
[1730310060495,0.47783369,2665.5,2664.9,3.79361415]
[1730310060807,0.47783369,2665.5,2664.9,3.75247]
[1730310061124,0.47783369,2665.5,2665.0,3.79329221]
[1730310061311,0.47783369,2665.5,2665.0,3.79319221]
[1730310061506,0.47783369,2665.5,2665.1,3.75219]
[1730310061717,0.5992,2665.8,2665.0,3.86825446]
[1730310061916,0.5992,2665.8,2665.6,3.7515]
[1730310062075,0.5992,2665.8,2665.7,3.75135]
[1730310062277,0.5992,2665.8,2665.7,3.79043481]
[1730310063288,0.5992,2665.8,2665.7,4.33727635]
[1730310064018,0.5992,2665.8,2665.7,5.12767635]
[1730310064182,0.5992,2665.8,2665.7,8.59247524]
[1730310064387,0.5992,2665.8,2665.7,8.51745601]
[1730310066018,0.5992,2665.8,2665.7,7.97061447]
[1730310066315,0.5992,2665.8,2665.7,0.03908481]
[1730310066917,0.5992,2665.8,2665.7,3.79043481]
[1730310067935,0.5992,2665.8,2665.7,4.25510851]
[1730310068135,0.5992,2665.8,2665.7,4.18009384]
[1730310068498,0.5992,2665.8,2665.7,0.42874384]
[1730310068716,0.5992,2665.8,2665.7,4.18009384]
[1730310068921,0.5992,2665.8,2665.7,3.79043481]
[1730310070795,0.5992,2665.8,2665.7,0.03908481]
[1730310071307,0.5992,2665.8,2665.4,3.75164]
[1730310071540,0.5992,2665.8,2665.7,0.03510292]
[1730310071836,0.5992,2665.8,2665.4,3.75164]
[1730310072020,5.13401,2665.8,2665.7,0.04251074]
[1730310072218,5.13401,2665.8,2665.2,3.75199]
[1730310072219,3.75137,2665.7,2665.2,3.75199]
[1730310072536,3.75137,2665.7,2665.3,0.04290331]
[1730310072738,1.3828,2665.8,2665.3,3.79481331]
[1730310073038,1.3828,2665.8,2665.4,3.75176]
[1730310073206,0.5992,2665.8,2665.5,3.75163]
[1730310073407,0.5992,2665.8,2665.5,3.79433701]
[1730310073650,0.5992,2665.8,2665.5,0.04270701]
[1730310073852,0.5992,2665.8,2665.7,3.75135]
[1730310073997,0.5992,2665.8,2665.7,4.52355]
[1730310074203,0.5992,2665.8,2665.7,4.56613323]
[1730310074835,0.5992,2665.8,2665.7,4.69743195]
[1730310075035,0.5992,2665.8,2665.7,7.69743195]
[1730310075210,0.5992,2665.8,2665.7,8.29248786]
[1730310076626,0.7667,2666.9,2665.9,0.01]
[1730310076826,3.74932,2667.2,2666.6,3.75]
[1730310077085,0.02505972,2667.1,2666.7,3.79518326]
[1730310077345,0.02505972,2667.1,2666.8,3.74978]
[1730310077548,3.74878,2667.6,2666.7,0.04525326]
[1730310077549,3.77417972,2667.3,2666.7,0.04525326]
[1730310077733,0.39996472,2667.3,2666.9,0.04954327]
[1730310077913,0.02505972,2667.3,2666.4,3.75029]
[1730310078116,4.56205,2666.8,2666.2,3.75062]
[1730310078346,5.393217,2666.8,2666.2,3.75062]
[1730310078547,5.393217,2666.8,2666.3,3.75049]